bitfinex/quotes_SOLUSD_20250217
["timestamp","ask_amount","ask_price","bid_price","bid_amount"]
[1739804713279,25.54244594,183.89,183.83,20.0]
[1739804713438,25.54244594,183.9,183.83,45.54244594]
[1739804713845,1.019781,183.89,183.83,45.54244594]
[1739804714143,25.54244594,183.88,183.83,20.0]
[1739804714344,26.56233573,183.91,183.84,25.54244594]
[1739804714577,25.54244594,183.9,183.83,20.0]
[1739804714880,26.56232374,183.89,183.83,20.0]
[1739804715075,1.0198778,183.89,183.83,50.98214594]
[1739804715239,13.5872,184.0,183.85,25.54244594]
[1739804715440,25.54244594,183.95,183.88,25.54244594]
[1739804715655,25.54244594,183.96,183.88,25.54244594]
[1739804715873,25.54244594,183.93,183.86,25.54244594]
[1739804716074,1.01971791,183.92,183.86,25.54244594]
[1739804716268,25.54244594,183.91,183.88,20.0]
[1739804716481,25.54244594,183.93,183.88,20.0]
[1739804716666,1.01964926,183.92,183.88,20.0]
[1739804716867,6.64,183.91,183.88,25.54244594]
[1739804717087,1.01959727,183.93,183.88,25.54244594]
[1739804717764,1.01958222,183.96,183.9,25.54244594]
[1739804717970,25.54244594,183.97,183.9,25.54244594]
[1739804718186,25.54244594,183.97,183.87,8.1324]
[1739804718187,26.56187165,183.96,183.89,30.98034594]
[1739804718387,1.01946761,183.97,183.91,25.54244594]
[1739804718587,1.01935979,183.99,183.91,25.54244594]
[1739804718794,1.01935979,183.97,183.92,25.54244594]
[1739804718972,25.54244594,183.94,183.86,5.4688]
[1739804719167,26.56205765,183.93,183.86,31.01124594]
[1739804719767,25.54244594,183.92,183.86,0.03]
[1739804719967,25.54244594,183.9,183.86,20.03]
[1739804720185,1.01978476,183.89,183.86,20.03]
[1739804720390,30.97914594,183.94,183.87,25.54244594]
[1739804720769,25.54244594,183.93,183.86,45.57244594]
[1739804721069,30.97914594,183.94,183.87,25.54244594]
[1739804721482,25.54244594,183.93,183.86,25.57244594]
[1739804721682,30.97914594,183.94,183.87,25.54244594]
[1739804721988,30.97894594,183.94,183.87,25.54244594]
[1739804722384,25.54244594,183.93,183.86,25.57244594]
[1739804722590,25.54244594,183.92,183.86,0.03]
[1739804722769,26.56221065,183.91,183.86,0.03]
[1739804722971,1.01976471,183.91,183.87,20.0]
[1739804723173,6.56,183.9,183.87,20.0]
[1739804723372,25.54244594,183.88,183.86,0.03]
[1739804723578,1.01994546,183.87,183.86,0.03]
[1739804723780,1.01994792,183.87,183.86,0.03]
[1739804723981,1.01986865,183.89,183.86,0.03]
[1739804724171,26.56231459,183.89,183.86,0.03]
[1739804724364,25.54244594,183.87,183.8,7.54296998]
[1739804724569,25.54244594,183.82,183.8,7.54296998]
[1739804724774,1.02028407,183.81,183.8,7.54296998]
[1739804725491,26.56273001,183.81,183.8,7.54296998]
[1739804725692,1.02028407,183.81,183.8,7.46187948]
[1739804726068,26.56273001,183.81,183.8,7.46187948]
[1739804726288,45.41497854,183.81,183.8,7.948e-05]
[1739804728094,6.46068407,183.81,183.8,7.948e-05]
[1739804728679,1.02028407,183.81,183.8,7.948e-05]
[1739804728888,26.56273001,183.81,183.8,7.948e-05]
[1739804729201,32.00313001,183.81,183.8,7.948e-05]
[1739804729696,6.46068407,183.81,183.8,7.948e-05]
[1739804729895,1.02028407,183.81,183.8,7.948e-05]
[1739804730192,25.54244594,183.84,183.8,0.03007948]
[1739804730193,6.46039049,183.82,183.8,0.03007948]
[1739804730579,1.02029049,183.82,183.8,0.03007948]
[1739804730904,1.02018289,183.85,183.8,0.03007948]
[1739804731076,6.45938289,183.85,183.8,25.57252542]
[1739804731277,6.45938289,183.85,183.8,0.03007948]
[1739804731278,25.54244594,183.84,183.8,0.03007948]
[1739804731494,1.02013774,183.83,183.8,0.03007948]
[1739804731703,25.54244594,183.84,183.8,0.03007948]
[1739804731885,5.4392,183.85,183.8,0.03007948]
[1739804731886,30.98164594,183.85,183.8,0.03007948]
[1739804732209,0.72923328,183.83,183.8,0.03007948]
[1739804732718,0.72923328,183.84,183.8,0.03007948]
[1739804733204,30.98164594,183.85,183.8,0.03007948]
[1739804733205,6.16843328,183.85,183.8,25.57252542]
[1739804733375,25.54244594,183.88,183.81,45.54244594]
[1739804733718,25.54244594,183.85,183.81,20.0]
[1739804733918,25.54244594,183.86,183.81,20.0]
[1739804734117,25.54244594,183.83,183.8,0.03007948]
[1739804734414,25.54244594,183.81,183.8,0.03007948]
[1739804734893,30.98284594,183.81,183.8,0.03007948]
[1739804735600,0.72923328,183.82,183.77,25.54244594]
[1739804735800,25.54244594,183.81,183.74,25.54244594]
[1739804735977,26.27167922,183.8,183.73,25.54244594]
[1739804737298,31.71237922,183.8,183.73,25.54244594]
[1739804737893,31.71237922,183.8,183.72,5.443]
[1739804738080,0.72923328,183.8,183.75,25.54244594]
[1739804738585,6.16993328,183.8,183.74,25.54244594]
[1739804738791,31.71237922,183.8,183.73,25.54244594]
[1739804739096,0.72923328,183.8,183.74,30.98464594]
[1739804739298,25.54244594,183.82,183.75,25.54244594]
[1739804739607,0.72923328,183.81,183.76,25.54244594]
[1739804739782,0.72923328,183.82,183.76,25.54244594]
[1739804739976,26.27167922,183.82,183.74,5.4422]
[1739804740183,25.54244594,183.81,183.74,25.54244594]
[1739804740401,0.72923328,183.8,183.74,25.54244594]
[1739804740878,0.72923328,183.8,183.74,30.98474594]
[1739804741313,30.98274594,183.82,183.76,25.54244594]
[1739804741487,0.72923328,183.81,183.76,25.54244594]
[1739804741688,26.27167922,183.81,183.74,20.0]
[1739804741895,26.27167922,183.81,183.74,25.57244594]
[1739804742213,26.27167922,183.81,183.75,20.0]
[1739804742583,25.54244594,183.79,183.74,0.03]
[1739804742789,0.72923328,183.78,183.74,0.03]
[1739804743006,26.27167922,183.78,183.74,0.03]
[1739804743411,6.17073328,183.78,183.74,0.03]
[1739804744101,25.54244594,183.75,183.74,0.03]
[1739804745211,30.98454594,183.75,183.74,0.03]
[1739804745393,31.71377922,183.75,183.74,0.03]
[1739804746889,0.72923328,183.75,183.74,0.03]
[1739804747605,0.72923328,183.76,183.74,0.03]
[1739804748598,25.54244594,183.78,183.74,0.03]
[1739804748804,0.72923328,183.77,183.74,0.03]
[1739804749593,26.27167922,183.77,183.74,0.03]
[1739804749789,31.71327922,183.77,183.74,0.03]
[1739804750017,25.54244594,183.76,183.74,0.03]
[1739804750291,0.72923328,183.75,183.74,0.03]
[1739804750595,0.72923328,183.76,183.74,0.03]
[1739804750998,25.54244594,183.75,183.74,0.03]
[1739804751315,26.27167922,183.76,183.74,0.03]
[1739804752019,0.72923328,183.76,183.74,0.03]
[1739804752317,25.54244594,183.78,183.74,0.03]
[1739804752517,0.72923328,183.77,183.74,0.03]
[1739804753095,0.72923328,183.78,183.74,0.03]
[1739804753690,25.54244594,183.76,183.74,0.03]
[1739804753898,0.72923328,183.75,183.74,0.03]
[1739804754217,31.71377922,183.75,183.74,0.03]
[1739804756911,6.17133328,183.75,183.74,0.03]
[1739804757314,0.72923328,183.75,183.74,0.03]
[1739804757514,0.72923328,183.76,183.74,0.03]
[1739804758201,26.27167922,183.76,183.74,0.03]
[1739804758519,30.98454594,183.75,183.74,0.03]
[1739804761619,0.72923328,183.77,183.74,0.03]
[1739804762121,0.72923328,183.78,183.74,0.03]
[1739804763415,30.98314594,183.8,183.74,0.03]
[1739804763416,0.72923328,183.79,183.74,0.03]
[1739804764305,6.17023328,183.79,183.74,0.03]
[1739804764701,0.72923328,183.79,183.74,0.03]
[1739804764903,5.4401,183.82,183.75,25.54244594]
[1739804765110,26.27167922,183.81,183.74,25.57244594]
[1739804765313,25.54244594,183.8,183.74,0.03]
[1739804765511,25.54244594,183.77,183.74,0.03]
[1739804765802,0.79223328,183.76,183.74,0.03]
[1739804766225,0.063,183.76,183.74,0.03]
[1739804767104,0.063,183.76,183.74,25.57244594]
[1739804767426,0.063,183.76,183.74,0.03]
[1739804767818,0.063,183.76,183.74,25.57244594]
[1739804768121,0.063,183.76,183.75,34.03927795]
[1739804768310,0.063,183.76,183.75,38.66514594]
[1739804768514,0.063,183.76,183.75,7.6806]
[1739804768727,0.063,183.76,183.74,0.03]
[1739804769415,0.063,183.76,183.74,31.01484594]
[1739804769624,0.063,183.76,183.74,25.57244594]
[1739804769826,0.063,183.76,183.74,0.03]
[1739804771311,0.063,183.76,183.75,25.54244594]
[1739804772714,0.063,183.85,183.75,36.00598162]
[1739804772913,0.063,183.85,183.81,16.00598162]
[1739804773441,0.063,183.85,183.81,21.44628162]
[1739804774013,0.79223328,183.85,183.79,16.00598162]
[1739804774215,16.7982149,183.85,183.78,16.00598162]
[1739804774416,16.7982149,183.85,183.79,16.00598162]
[1739804774616,0.79223328,183.85,183.8,20.0]
[1739804775037,26.40326967,183.85,183.8,20.0]
[1739804775341,31.84246967,183.85,183.8,20.0]
[1739804776219,25.61103639,183.82,183.75,31.05313639]
[1739804776420,26.34026967,183.81,183.75,5.4421]
[1739804776751,25.61103639,183.8,183.74,25.64103639]
[1739804776927,26.34026967,183.79,183.74,0.03]
[1739804777128,25.61103639,183.78,183.74,0.03]
[1739804777314,0.72923328,183.77,183.74,0.03]
[1739804777514,0.72923328,183.82,183.74,0.03]
[1739804777717,26.34026967,183.82,183.75,25.61103639]
[1739804778553,26.34026967,183.82,183.74,45.64103639]
[1739804778554,25.61103639,183.81,183.74,45.64103639]
[1739804778738,25.61103639,183.79,183.74,0.03]
[1739804778915,31.78116967,183.8,183.74,0.03]
[1739804779423,25.61103639,183.79,183.74,0.03]
[1739804779614,0.72923328,183.78,183.74,0.03]
[1739804779814,26.34026967,183.78,183.74,0.03]
[1739804780411,0.72923328,183.78,183.74,0.03]
[1739804780616,0.72923328,183.79,183.74,5.4724]
[1739804780818,0.72923328,183.79,183.74,0.03]
[1739804781351,25.61103639,183.81,183.74,25.64103639]
[1739804781547,26.40326967,183.85,183.78,25.61103639]
[1739804781733,0.72923328,183.84,183.79,25.61103639]
[1739804781928,0.72923328,183.84,183.78,25.61103639]
[1739804782135,25.61103639,183.82,183.76,25.61103639]
[1739804782338,0.72923328,183.81,183.76,25.61103639]
[1739804783251,31.05123639,183.82,183.75,25.61103639]
[1739804783644,0.72923328,183.81,183.75,25.61103639]
[1739804784261,5.4402,183.82,183.76,45.61103639]
[1739804784555,0.72923328,183.82,183.77,25.61103639]
[1739804784757,6.16903328,183.83,183.77,25.61103639]
[1739804784957,0.72923328,183.84,183.78,25.61103639]
[1739804785163,0.79223328,183.85,183.79,25.61103639]
[1739804785463,0.79223328,183.85,183.76,0.81610898]
[1739804785464,0.063,183.85,183.8,25.61103639]
[1739804785640,0.063,183.85,183.81,25.61103639]
[1739804786172,0.063,183.85,183.82,25.61103639]
[1739804786457,0.063,183.85,183.83,25.61103639]
[1739804786636,0.063,183.85,183.82,5.44]
[1739804786637,0.063,183.85,183.82,31.05103639]
[1739804787626,0.063,183.85,183.83,25.61103639]
[1739804787934,0.063,183.85,183.84,25.61103639]
[1739804789751,0.063,183.85,183.84,31.05053639]
[1739804790959,0.0001,183.85,183.84,70.07342131]
[1739804791541,0.0001,183.85,183.84,102.60342131]
[1739804792067,0.0001,183.85,183.84,76.99238492]
[1739804792482,0.0001,183.85,183.84,102.60342131]
[1739804792837,0.063,183.94,183.84,102.60342131]
[1739804793136,0.063,183.94,183.93,25.61103639]
[1739804793340,0.063,184.04,183.96,20.0]
[1739804793575,0.063,184.04,184.03,25.61103639]
[1739804794177,0.063,184.04,184.01,25.61103639]
[1739804794389,0.063,184.04,184.0,25.61103639]
[1739804794539,0.063,184.04,184.01,25.61103639]
[1739804794977,0.063,184.04,184.03,25.61103639]
[1739804795271,0.063,184.04,184.03,31.04483639]
[1739804796880,0.063,184.04,184.03,32.56073639]
[1739804797050,0.063,184.04,184.03,39.19763639]
[1739804797644,0.063,184.04,184.03,13.5866]
[1739804797851,0.063,184.04,184.03,31.04483639]
[1739804798249,0.063,184.04,184.03,25.61103639]
[1739804798907,0.063,184.04,184.03,31.04483639]
[1739804799762,0.063,184.04,184.03,56.65587278]
[1739804799763,0.0001,184.04,184.03,56.65587278]
[1739804799964,0.0001,184.04,184.03,57.47051261]
[1739804800499,0.05872374,184.07,184.06,20.0]
[1739804800704,0.05872374,184.07,184.06,46.4256181]
[1739804800874,0.05872374,184.07,184.06,45.61103639]
[1739804801470,0.05872374,184.07,184.06,51.04403639]
[1739804801670,0.05872374,184.07,184.06,51.85875192]
[1739804802094,2.374e-05,184.07,184.06,51.85875192]
[1739804803406,2.374e-05,184.07,184.06,65.27060045]
[1739804803768,2.374e-05,184.07,184.06,51.85875192]
[1739804807793,2.374e-05,184.07,184.06,65.27060045]
[1739804808522,0.063,184.13,184.12,25.61103639]
[1739804809324,0.063,184.13,184.12,31.04223639]
[1739804810616,0.063,184.13,184.12,35.9436043]
[1739804811686,0.063,184.13,184.1,6.24593706]
[1739804811927,0.063,184.13,184.12,15.9436043]
[1739804812222,0.063,184.13,184.11,15.9436043]
[1739804812823,0.063,184.13,184.12,15.9436043]
[1739804813794,0.063,184.13,184.12,21.3748043]
[1739804814407,0.063,184.13,184.12,50.73025713]
[1739804814610,0.063,184.23,184.15,20.0]
[1739804814813,0.063,184.23,184.21,15.9436043]
[1739804815638,0.063,184.23,184.22,15.9436043]
[1739804816229,0.063,184.23,184.21,15.9436043]
[1739804816647,0.063,184.23,184.21,25.49598714]
[1739804817054,0.063,184.23,184.22,45.49598714]
[1739804818745,0.063,184.23,184.22,25.49598714]
[1739804818954,0.063,184.23,184.17,20.0]
[1739804819128,0.063,184.23,184.2,25.49598714]
[1739804819329,0.063,184.23,184.14,5.4306]
[1739804819551,0.79223328,184.23,184.17,25.49598714]
[1739804819758,25.49598714,184.22,184.16,25.49598714]
[1739804819964,0.72923328,184.21,184.15,25.49598714]
[1739804820161,26.22522042,184.21,184.15,25.49598714]
[1739804820363,30.92478714,184.2,184.14,25.49598714]
[1739804820531,0.72923328,184.19,184.14,25.49598714]
[1739804821188,25.49598714,184.16,184.09,25.49598714]
[1739804821478,6.94173328,184.19,184.11,25.49598714]
[1739804821479,0.72923328,184.15,184.11,25.49598714]
[1739804821686,7.78813328,184.22,184.14,25.49598714]
[1739804821851,7.78813328,184.22,184.17,25.49598714]
[1739804822052,1.6306,184.22,184.17,25.49598714]
[1739804822253,1.6306,184.22,184.18,25.49598714]
[1739804822451,7.78823328,184.22,184.16,25.49598714]
[1739804823478,7.78823328,184.22,184.17,25.49598714]
[1739804824372,1.6306,184.22,184.18,25.49598714]
[1739804824577,0.063,184.23,184.2,25.49598714]
[1739804824793,0.063,184.23,184.21,25.49598714]
[1739804825079,0.063,184.23,184.19,25.49598714]
[1739804825573,0.79223328,184.23,184.18,25.49598714]
[1739804825879,0.063,184.23,184.18,25.49598714]
[1739804826056,0.03,184.19,184.15,5.4301]
[1739804826257,0.03,184.19,184.18,25.49598714]
[1739804827480,0.03,184.19,184.18,45.49598714]
[1739804828694,0.03,184.19,184.15,25.49598714]
[1739804829298,0.03,184.19,184.16,25.49598714]
[1739804831386,0.03,184.19,184.17,25.49598714]
[1739804832195,0.03,184.19,184.16,25.49598714]
[1739804835984,25.49598714,184.18,184.08,2.4706025]
[1739804836288,0.72923328,184.17,184.12,25.49598714]
[1739804836680,16.68034594,184.17,184.11,15.95111266]
[1739804838094,5.43,184.16,184.11,15.95111266]
[1739804839101,15.95111266,184.14,184.1,0.063]
[1739804839284,16.68034594,184.13,184.1,0.063]
[1739804839907,15.95111266,184.12,184.1,0.063]
[1739804840081,6.16073328,184.11,184.1,0.063]
[1739804841081,5.4315,184.11,184.1,0.063]
[1739804841678,0.03,184.19,184.17,20.0]
[1739804842003,0.03,184.19,184.15,15.95111266]
[1739804842187,0.03,184.19,184.1,0.063]
[1739804842588,6.4649,184.17,184.1,0.063]
[1739804842896,0.72923328,184.16,184.1,0.063]
[1739804843407,16.68034594,184.16,184.1,0.063]
[1739804844310,16.68034594,184.16,184.1,16.01411266]
[1739804844801,26.25615692,184.16,184.1,0.063]
[1739804845010,0.72923328,184.16,184.1,25.58992364]
[1739804845510,26.25615692,184.16,184.1,0.063]
[1739804845719,0.03,184.19,184.14,25.52692364]
[1739804846186,0.75923328,184.19,184.13,25.52692364]
[1739804846995,26.28615692,184.19,184.13,25.52692364]
[1739804847200,26.28615692,184.19,184.12,25.52692364]
[1739804847983,31.71535692,184.19,184.12,25.52692364]
[1739804848188,26.28615692,184.19,184.12,25.52692364]
[1739804849007,0.75923328,184.19,184.14,25.52692364]
[1739804849191,0.75923328,184.19,184.17,25.52692364]
[1739804849192,0.03,184.19,184.17,25.52692364]
[1739804849401,0.03,184.19,184.18,25.52692364]
[1739804850292,0.0001,184.19,184.18,38.93877217]
[1739804851529,0.063,184.23,184.22,20.0]
[1739804851808,0.063,184.23,184.22,84.46569581]
[1739804852591,0.063,184.26,184.25,45.52692364]
[1739804852790,0.063,184.32,184.25,46.34059084]
[1739804853021,0.063,184.32,184.31,25.52692364]
[1739804854012,26.24285643,184.38,184.31,25.52692364]
[1739804854313,31.66645643,184.38,184.31,25.52692364]
[1739804854697,25.52692364,184.35,184.29,25.52692364]
[1739804854899,25.52692364,184.31,184.25,25.52692364]
[1739804855089,26.22955594,184.3,184.23,25.52692364]
[1739804855295,30.95312364,184.29,184.22,25.52692364]
[1739804855503,0.7026323,184.28,184.22,25.52692364]
[1739804856013,0.7026323,184.28,184.23,25.52692364]
[1739804856216,6.406,184.31,184.18,13.4762]
[1739804856217,0.7026323,184.3,184.25,25.52692364]
[1739804856895,6.1286323,184.3,184.25,25.52692364]
[1739804857090,6.406,184.31,184.19,14.22594447]
[1739804857289,0.7026323,184.32,184.27,25.52692364]
[1739804857495,83.0026323,184.33,184.27,25.52692364]
[1739804857709,83.0026323,184.33,184.23,0.81390065]
[1739804857710,6.1278323,184.33,184.28,25.52692364]
[1739804857912,6.1278323,184.33,184.29,25.52692364]
[1739804858301,0.7026323,184.36,184.31,25.52692364]
[1739804858498,6.0526037,184.36,184.3,25.52692364]
[1739804858698,31.57952734,184.36,184.29,25.52692364]
[1739804858905,25.52692364,184.31,184.26,20.0]
[1739804859120,26.08109874,184.3,184.23,25.52692364]
[1739804860128,5.4262,184.29,184.23,25.52692364]
[1739804860514,5.4262,184.29,184.24,25.52692364]
[1739804862017,5.4262,184.29,184.23,25.52692364]
[1739804862228,25.52692364,184.26,184.2,25.52692364]
[1739804862406,25.52692364,184.24,184.18,25.58992364]
[1739804862603,26.08109874,184.23,184.18,0.063]
[1739804862810,25.52692364,184.22,184.18,0.063]
[1739804863323,0.5541751,184.21,184.18,0.063]
[1739804863501,25.52692364,184.2,184.18,0.063]
[1739804863710,26.08109874,184.19,184.18,0.063]
[1739804864202,31.51019874,184.19,184.18,0.063]
[1739804864418,45.08309874,184.19,184.12,0.063]
[1739804864606,25.52692364,184.17,184.12,0.063]
[1739804864818,0.5541751,184.16,184.12,0.063]
[1739804865124,26.08109874,184.17,184.12,0.063]
[1739804865627,0.5541751,184.17,184.12,25.58992364]
[1739804866120,5.43,184.16,184.12,0.063]
[1739804866325,0.5541751,184.15,184.12,0.063]
[1739804867431,5.9841751,184.16,184.12,0.063]
[1739804871229,107.82692364,184.18,184.12,25.58992364]
[1739804871230,0.5541751,184.17,184.12,25.58992364]
[1739804871426,5.9839751,184.17,184.13,25.52692364]
[1739804872212,5.4298,184.17,184.14,25.52692364]
[1739804872618,0.5541751,184.16,184.12,25.58992364]
[1739804872809,82.3,184.18,184.13,25.52692364]
[1739804873115,6.07080419,184.19,184.13,25.52692364]
[1739804873435,31.59772783,184.19,184.13,25.52692364]
[1739804873817,31.59772783,184.19,184.12,0.063]
[1739804873818,6.07080419,184.19,184.14,25.52692364]
[1739804874036,0.03,184.18,184.13,25.52692364]
[1739804874230,0.03,184.18,184.14,25.52692364]
[1739804875152,0.03,184.18,184.15,25.52692364]
[1739804876249,0.03,184.18,184.14,25.52692364]
[1739804876413,0.67170419,184.18,184.13,25.52692364]
[1739804876739,0.67170419,184.18,184.12,0.063]
[1739804876922,26.19862783,184.18,184.12,0.063]
[1739804877120,25.52692364,184.17,184.12,0.063]
[1739804877371,5.4303,184.15,184.12,0.063]
[1739804878345,5.4303,184.15,184.12,25.58992364]
[1739804878519,5.43,184.16,184.13,25.52692364]
[1739804878721,5.43,184.16,184.14,25.52692364]
[1739804878919,5.43,184.16,184.13,25.52692364]
[1739804879131,5.43,184.16,184.12,0.063]
[1739804879335,5.4306,184.14,184.12,0.063]
[1739804880534,26.16862783,184.13,184.12,0.063]
[1739804880841,98.90237424,184.13,184.12,0.063]
[1739804881036,35.96067005,184.11,184.1,0.0001]
[1739804881250,50.01422277,184.11,184.1,0.0001]
[1739804881428,55.44572277,184.11,184.1,0.0001]
[1739804882038,69.02452277,184.11,184.06,0.063]
[1739804882252,15.96067005,184.07,184.06,0.063]
[1739804882456,16.60237424,184.07,184.06,0.063]
[1739804882640,26.19513704,184.07,184.06,0.063]
[1739804883342,26.19513704,184.07,184.06,0.0001]
[1739804883549,45.03968557,184.07,184.06,0.0001]
[1739804883858,46.60768557,184.07,184.06,0.0001]
[1739804884045,72.16111842,184.07,184.06,0.0001]
[1739804884356,25.55343285,184.0,183.93,25.61643285]
[1739804884535,26.19513704,184.02,183.95,25.55343285]
[1739804884741,0.64170419,184.02,183.97,25.55343285]
[1739804885356,20.0,184.01,183.95,25.55343285]
[1739804885550,6.07660419,184.0,183.96,25.55343285]
[1739804885753,6.07660419,184.0,183.97,0.063]
[1739804885948,0.64170419,184.0,183.98,25.55343285]
[1739804886256,0.64170419,184.03,183.99,25.55343285]
[1739804886958,0.64170419,184.03,183.98,25.55343285]
[1739804887158,0.64170419,184.03,183.99,25.55343285]
[1739804887563,0.64170419,184.03,183.97,25.61643285]
[1739804887564,5.4339,184.03,183.97,25.61643285]
[1739804887861,0.64170419,184.02,183.97,25.61643285]
[1739804888160,0.64170419,184.03,184.01,25.55343285]
[1739804888358,0.64170419,184.03,184.0,25.55343285]
[1739804888657,0.64170419,184.04,184.01,25.55343285]
[1739804888956,0.64170419,184.05,184.03,25.55343285]
[1739804889258,0.64170419,184.06,184.02,25.55343285]
[1739804889438,5.4333,184.05,184.01,25.55343285]
[1739804889634,0.64170419,184.05,184.02,25.55343285]
[1739804889860,0.64170419,184.06,184.04,25.55343285]
[1739804890062,82.3,184.07,184.04,25.55343285]
[1739804890447,20.0,184.06,184.04,25.55343285]
[1739804891158,5.4615,184.11,184.05,25.55343285]
[1739804891362,0.64170419,184.1,184.08,25.55343285]
[1739804891962,6.07360419,184.1,184.05,25.55343285]
[1739804892167,6.07360419,184.1,184.06,25.55343285]
[1739804892543,6.07360419,184.1,184.05,25.55343285]
[1739804892739,31.62703704,184.1,184.03,25.55343285]
[1739804892952,25.55343285,184.09,184.02,25.55343285]
[1739804893149,0.64170419,184.08,184.03,25.55343285]
[1739804893643,5.4327,184.07,184.03,25.55343285]
[1739804893838,0.64170419,184.06,184.03,25.55343285]
[1739804894044,5.4327,184.07,184.04,25.55343285]
[1739804894363,0.64170419,184.06,184.04,25.55343285]
[1739804894548,0.64170419,184.08,184.03,25.55343285]
[1739804895455,0.64170419,184.08,184.05,25.55343285]
[1739804895663,0.64170419,184.1,184.07,25.55343285]
[1739804895851,0.64170419,184.1,184.08,25.55343285]
[1739804896366,0.03,184.11,184.09,25.55343285]
[1739804896663,0.03,184.11,184.1,25.55343285]
[1739804898855,0.03,184.11,184.1,30.98523285]
[1739804899069,0.03,184.18,184.1,30.98523285]
[1739804899237,0.03,184.18,184.17,25.55343285]
[1739804902955,0.03,184.18,184.17,30.98313285]
[1739804903150,0.03,184.18,184.17,32.57505017]
[1739804903463,0.03,184.18,184.16,25.55343285]
[1739804903854,0.03,184.18,184.14,25.55343285]
[1739804904051,0.03,184.18,184.13,25.55343285]
[1739804904368,0.67170419,184.18,184.13,25.55343285]
[1739804904567,26.22513704,184.18,184.08,1.6538]
[1739804904747,82.3,184.17,184.1,25.55343285]
[1739804904948,25.55343285,184.15,184.09,25.55343285]
[1739804905149,0.64170419,184.14,184.08,25.61643285]
[1739804905358,26.19513704,184.14,184.08,25.61643285]
[1739804905665,26.19513704,184.14,184.08,0.063]
[1739804905844,0.64170419,184.14,184.09,25.55343285]
[1739804906045,25.4309,184.13,184.09,25.55343285]
[1739804906244,0.64170419,184.12,184.09,25.55343285]
[1739804907379,0.64170419,184.12,184.1,25.55343285]
[1739804907956,0.64170419,184.14,184.11,25.55343285]
[1739804908158,0.64170419,184.14,184.08,0.063]
[1739804908159,6.07200419,184.15,184.13,25.55343285]
[1739804908349,13.6038,184.18,184.14,25.55343285]
[1739804908350,0.64170419,184.17,184.14,25.55343285]
[1739804908552,0.03,184.18,184.15,25.55343285]
[1739804909060,0.03,184.18,184.17,25.55343285]
[1739804917382,0.03,184.18,184.16,25.55343285]
[1739804917577,0.03,184.18,184.13,25.55343285]
[1739804917985,0.67170419,184.18,184.14,25.55343285]
[1739804918490,0.67170419,184.18,184.15,25.55343285]
[1739804918698,0.03,184.18,184.16,25.55343285]
[1739804919068,0.03,184.18,184.17,25.55343285]
[1739804919589,0.67170419,184.18,184.15,25.55343285]
[1739804920092,0.03,184.18,184.15,25.55343285]
[1739804922669,0.64170419,184.17,184.09,5.432]
[1739804922875,0.64170419,184.17,184.13,25.55343285]
[1739804923793,5.4595,184.18,184.14,25.55343285]
[1739804924366,5.4595,184.18,184.15,25.55343285]
[1739804924988,0.03,184.18,184.15,25.55343285]
[1739804925566,0.03,184.18,184.16,25.55343285]
[1739804925893,0.03,184.18,184.17,25.55343285]
[1739804926398,0.03,184.18,184.16,25.55343285]
[1739804926578,0.67170419,184.18,184.15,25.55343285]
[1739804926975,0.67170419,184.18,184.14,25.55343285]
[1739804927893,5.4297,184.17,184.14,25.55343285]
[1739804928195,0.64170419,184.16,184.13,25.55343285]
[1739804928383,0.64170419,184.16,184.12,25.55343285]
[1739804928585,0.64170419,184.16,184.12,15.95154173]
[1739804928790,0.64170419,184.16,184.13,15.95154173]
[1739804929696,0.64170419,184.16,184.11,0.063]
[1739804929904,5.4303,184.15,184.11,0.063]
[1739804930103,98.89324592,184.14,184.11,0.063]
[1739804931302,82.94170419,184.14,184.11,0.063]
[1739804932592,5.4309,184.13,184.11,0.063]
[1739804932797,0.64170419,184.12,184.11,0.063]
[1739804934305,6.07290419,184.12,184.11,0.063]
[1739804938097,82.3,184.14,184.11,0.063]
[1739804938405,0.64170419,184.13,184.11,0.063]
[1739804938996,25.53411292,184.12,184.11,0.063]
[1739804939784,30.96531292,184.12,184.11,0.063]
[1739804940000,44.37716145,184.12,184.11,0.0001]
[1739804940200,57.95526145,184.12,184.08,0.0001]
[1739804940390,6.5927,184.08,183.98,25.53411292]